[Event "Norway Eliteserien 2023-24"]
[Site "Oslo"]
[Date "2024.03.10"]
[Round "9.11"]
[White "Sadhwani, Raunak"]
[Black "Amar, Elham"]
[Result "1-0"]
[ECO "B36"]
[WhiteElo "2649"]
[BlackElo "2567"]
[Annotator "RC"]
[PlyCount "111"]
[EventDate "2023.10.27"]
[EventType "team-tourn"]
[EventCountry "NOR"]
[SourceTitle "playchess.com"]
[Source "ChessBase"]
[SourceQuality "1"]
[TimeControl "40/5400+30:1800+30"]

1. e4 c5 2. Nf3 g6 3. d4 cxd4 4. Nxd4 Nc6 5. c4 Nf6 6. Nc3 Nxd4 7. Qxd4 d6 8. Be2 Bg7 9. Be3 O-O 10. Qd3 a5 11. O-O a4 12. Bd4 Qa5 13. Rac1 Bd7 14. Qe3 Bc6 15. Nd5 Bxd5 16. exd5 Rfe8 17. Rfd1 Nd7 18. Bxg7 Kxg7 19. Rc3 Qc5 20. Qd2 Nf6 21. Rh3 e6 22. Qf4 exd5 23. Rf3 Nh5 24. Qxf7+ Kh8 25. Bf1 dxc4 26. Rd5 Re7 27. Qxe7 Qxd5 28. Rf8+ Rxf8 29. Qxf8+ Qg8 30. Qxd6 c3 31. Qe5+ Qg7 32. Qb8+ Qg8 33. Qxg8+ Kxg8 34. bxc3 a3 35. f3 Kf7 36. Kf2 Ke6 37. Ke3 Kd5 38. Kd2 Ng7 39. Bd3 b6 40. Bc2 Kc5 41. Bb3 g5 42. Kd3 Nf5 43. Ke4 Nd6+ 44. Kd3 Nf5 45. g3 Nd6 46. Be6 h6 47. Kc2 h5 48. Kb3 h4 49. Kxa3 Nc4+ 50. Bxc4 Kxc4 51. gxh4 gxh4 52. Kb2 Kd3 53. a4 h3 54. f4 Ke4 55. c4 Kxf4 {[%emt 2:19:32]} 56. c5 {[%emt 2:09:34]} 1-0

[Event "Norway Eliteserien 2023-24"]
[Site "Oslo"]
[Date "2024.03.10"]
[Round "9.12"]
[White "Agdestein, Simen"]
[Black "Tari, Aryan"]
[Result "1/2-1/2"]
[ECO "D38"]
[WhiteElo "2559"]
[BlackElo "2635"]
[Annotator "TA"]
[PlyCount "88"]
[EventDate "2023.10.27"]
[EventType "team-tourn"]
[EventCountry "NOR"]
[SourceTitle "playchess.com"]
[Source "ChessBase"]
[SourceQuality "1"]
[TimeControl "40/5400+30:1800+30"]

{[%evp 12,88,24,15,20,15,10,27,27,-8,16,0,0,-11,0,0,0,0,0,0,0,0,0,0,0,0,0,0,0,0,0,0,106,141,131,139,138,150,156,156,136,107,271,260,272,274,244,257,263,15,14,0,0,0,0,0,0,0,0,0,0,0,0,0,0,0,0,0,0,0,0,0,0,0,0,0,0,0,0]} 1. d4 d5 2. c4 e6 3. Nf3 Nf6 4. Nc3 Nbd7 5. cxd5 exd5 6. Bg5 {[%cal Bc1g5,Bg5h4,Bh4g3,Bg3e5][%mdl 32]} Bb4 7. e3 h6 8. Bh4 g5 9. Bg3 Ne4 {White has an edge.} 10. Qc2 h5 {...h4 would now be deadly.} 11. Bd3 h4 12. Bxe4 dxe4 13. Qxe4+ Kf8 $1 14. Be5 f6 15. Nxg5 (15. d5 $2 Qe7 16. Rc1 (16. d6 $2 Bxc3+ 17. bxc3 cxd6 $19) 16... Nxe5 $19) 15... Bxc3+ (15... fxe5 $2 {too greedy.} 16. Ne6+ Ke7 17. Nxd8 $18) 16. bxc3 Nxe5 (16... fxe5 $2 {loses.} 17. Ne6+ Ke7 18. Nxd8 $18) 17. dxe5 $40 {[%mdl 128] White mounts an attack.} fxg5 18. f4 Kg7 {[%cal Bf8g7,Bg7h6,Bh6g5][%mdl 32]} 19. O-O h3 20. f5 Rh4 $1 {[%cal Bh8h4,Bh4e4,Be4e3][%mdl 32]} 21. Qf3 Qd2 (21... Qe8 $1 $11 22. Qg3 Kh7 (22... Qh5 23. e6 $16)) 22. gxh3 $16 Qxc3 23. Qg3 Kh6 {[%cal Oc8f5] [#] White must now prevent ...Bxf5!} 24. Rac1 Qa3 25. Rxc7 Re4 26. h4 {[%csl Gh4][%cal Rg3g5] Some like it hot. White is more active.} Qxe3+ (26... g4 $16) 27. Qxe3 $18 Rxe3 28. hxg5+ Kxg5 29. Rg7+ Kh6 {[#]} 30. Rg6+ ({White has to play} 30. Rg8 $1 $18) 30... Kh7 $11 {[%cal Oc8f5] Hoping for ...Bxf5! The position is equal.} 31. e6 Bxe6 $1 32. Rxe6 {[%mdl 4096] Endgame. KRR-KRR} Rg8+ 33. Kh1 Re8 34. Rxe8 Rxe8 {KR-KR} 35. Kg2 Kg7 36. Kg3 Kf6 37. h4 b5 38. Kf4 Rh8 39. Rh1 Rh5 40. Kg4 Rxf5 41. h5 Rc5 42. h6 {And now h7 would win.} Rc8 43. Kh5 {aiming for Rf1+.} Rc5+ 44. Kg4 {[%emt 1:55:52] h7 is the strong threat.} Rc8 {[%emt 1:51:35] White really could win this.   Weighted Error Value: White=0.12 (very precise) /Black=0.08 (flawless) .  Loses game:     	---       	Black=1      Missed win:     	White=1     	---        Mistake:       	---       	Black=1      Inaccurate:     	White=2     	---        OK:         	White=8     	Black=21     Best:        	White=6     	Black=4      Strong:       	---       	Black=3} 1/2-1/2

[Event "Norway Eliteserien 2023-24"]
[Site "Oslo"]
[Date "2024.03.10"]
[Round "9.13"]
[White "Christiansen, Johan-Sebastian"]
[Black "Hauge, Lars Oskar"]
[Result "1-0"]
[ECO "C42"]
[WhiteElo "2633"]
[BlackElo "2486"]
[Annotator "RC"]
[PlyCount "75"]
[EventDate "2023.10.27"]
[EventType "team-tourn"]
[EventCountry "NOR"]
[SourceTitle "playchess.com"]
[Source "ChessBase"]
[SourceQuality "1"]
[TimeControl "40/5400+30:1800+30"]

1. e4 e5 2. Nf3 Nf6 3. Nxe5 d6 4. Nf3 Nxe4 5. d4 d5 6. Bd3 Be7 7. O-O O-O 8. c4 Nf6 9. h3 Nc6 10. Nc3 Nb4 11. Be2 dxc4 12. Bxc4 c6 13. Bg5 Nbd5 14. Re1 Be6 15. Bb3 Re8 16. Rc1 h6 17. Bh4 Nxc3 18. bxc3 Bxb3 19. Qxb3 Qb6 20. Qc2 Qc7 21. Re5 Ba3 22. Rb1 Rxe5 23. Nxe5 g5 24. Bg3 Nh5 25. Ng4 Nxg3 26. fxg3 Kg7 27. Rf1 Rh8 28. Ne3 Bf8 29. Qe4 Kg8 30. Nf5 Qd7 31. Re1 Rh7 32. c4 b5 33. cxb5 cxb5 34. d5 b4 35. d6 f6 36. Qd5+ Kh8 37. Qa8 {[%emt 1:41:51]} Rf7 {[%emt 1:43:00]} 38. Re7 {[%emt 1:42:21]} 1-0

[Event "Norway Eliteserien 2023-24"]
[Site "Oslo"]
[Date "2024.03.10"]
[Round "9.14"]
[White "Mitusov, Semen"]
[Black "Urkedal, Frode Olav Olsen"]
[Result "0-1"]
[ECO "C88"]
[WhiteElo "2487"]
[BlackElo "2525"]
[Annotator "RC"]
[PlyCount "94"]
[EventDate "2023.10.27"]
[EventType "team-tourn"]
[EventCountry "NOR"]
[SourceTitle "playchess.com"]
[Source "ChessBase"]
[SourceQuality "1"]
[TimeControl "40/5400+30:1800+30"]

1. e4 e5 2. Nf3 Nc6 3. Bb5 a6 4. Ba4 Nf6 5. O-O Be7 6. Re1 b5 7. Bb3 O-O 8. a4 Bb7 9. d3 d6 10. c3 Na5 11. Ba2 c5 12. Nbd2 c4 13. dxc4 bxc4 14. Nxc4 Nxc4 15. Bxc4 Nxe4 16. Bd5 Bxd5 17. Qxd5 Nf6 18. Qc6 Qc8 19. Qxc8 Rfxc8 20. Bg5 Rab8 21. Re2 Kf8 22. Kf1 Nd7 23. Ke1 Nc5 24. Kd1 Bxg5 25. Nxg5 f6 26. Nf3 d5 27. Ra3 Nd3 28. b4 Nf4 29. Rd2 d4 30. cxd4 Rxb4 31. Ra1 exd4 32. g3 Ne6 33. a5 Rc5 34. Ne1 Rbb5 35. Nf3 Rd5 36. Ke2 g5 37. Ra4 d3+ 38. Ke3 Nc5 39. Rc4 Rxa5 40. Nd4 Ra1 41. f3 Kf7 42. g4 a5 43. Rb2 a4 44. Kd2 a3 45. Rb5 a2 46. Rbxc5 Rxc5 47. Rxc5 {[%emt 1:52:45]} Rd1+ {[%emt 2:06:39]} 0-1

[Event "Norway Eliteserien 2023-24"]
[Site "Oslo"]
[Date "2024.03.10"]
[Round "9.15"]
[White "Kaasen, Tor Fredrik"]
[Black "Ingebretsen, Jens E"]
[Result "1-0"]
[ECO "D11"]
[WhiteElo "2437"]
[BlackElo "2400"]
[Annotator "RC"]
[PlyCount "61"]
[EventDate "2023.10.27"]
[EventType "team-tourn"]
[EventCountry "NOR"]
[SourceTitle "playchess.com"]
[Source "ChessBase"]
[SourceQuality "1"]
[TimeControl "40/5400+30:1800+30"]

1. d4 d5 2. c4 c6 3. Nf3 Nf6 4. Qc2 g6 5. g3 Bg7 6. Bg2 O-O 7. O-O a6 8. Bf4 Bf5 9. Qb3 Ra7 10. Rc1 b5 11. cxd5 cxd5 12. Nbd2 Ne4 13. a4 Rb7 14. e3 Qd7 15. axb5 Rxb5 16. Qa3 Rc8 17. Bf1 Rb6 18. Nxe4 Bxe4 19. Nd2 Bc2 20. Nc4 Rb3 21. Qa2 dxc4 22. Rxc2 e6 23. Rac1 Rb6 24. Rxc4 Rxc4 25. Rxc4 Nc6 26. Bg2 Nb4 27. Qa4 Qxa4 28. Rc8+ Bf8 29. Bh6 Qd1+ 30. Bf1 f5 {[%emt 1:45:30]} 31. Rxf8# {[%emt 1:27:11]} 1-0

[Event "Norway Eliteserien 2023-24"]
[Site "Oslo"]
[Date "2024.03.10"]
[Round "9.16"]
[White "Getz, Nicolai"]
[Black "Haldorsen, Benjamin"]
[Result "0-1"]
[ECO "B21"]
[WhiteElo "2352"]
[BlackElo "2427"]
[Annotator "ChessBase"]
[PlyCount "70"]
[EventDate "2023.10.27"]
[EventType "team-tourn"]
[EventCountry "NOR"]
[SourceTitle "playchess.com"]
[Source "ChessBase"]
[SourceQuality "1"]
[TimeControl "40/5400+30:1800+30"]

1. e4 c5 2. d3 Nc6 3. f4 d5 4. Be2 g6 5. Nf3 Nf6 6. e5 Nh5 7. Na3 Bh6 8. g3 f6 9. Nh4 Ng7 10. exf6 exf6 11. O-O O-O 12. c3 Bh3 13. Ng2 Qd7 14. Bf3 Rae8 15. Bd2 Kh8 16. Qb3 Rd8 17. Rf2 g5 18. Re1 Ne6 19. f5 Nc7 20. Ne3 Ne5 21. Be2 b5 22. d4 Nc4 23. Bc1 Rfe8 24. Bh5 Re4 25. Naxc4 bxc4 26. Qb7 cxd4 27. cxd4 g4 28. Bd2 Bg5 29. Nc2 Bxd2 30. Rxe4 dxe4 31. Rxd2 Qxf5 32. Rf2 Qg5 33. Qxe4 Qxh5 34. Qe7 Qe8 35. Qxc7 {[%emt 1:44:15]} Rxd4 {[%emt 1:46:29]} 0-1

[Event "Norway Eliteserien 2023-24"]
[Site "Oslo"]
[Date "2024.03.10"]
[Round "9.21"]
[White "Petkov, Momchil"]
[Black "Predojevic, Borki"]
[Result "1/2-1/2"]
[ECO "B07"]
[WhiteElo "2504"]
[BlackElo "2572"]
[Annotator "RC"]
[PlyCount "45"]
[EventDate "2023.10.27"]
[EventType "team-tourn"]
[EventCountry "NOR"]
[SourceTitle "playchess.com"]
[Source "ChessBase"]
[SourceQuality "1"]
[TimeControl "40/5400+30:1800+30"]

1. d4 d6 2. e4 Nf6 3. Nc3 e5 4. Nf3 Nbd7 5. a4 c6 6. a5 exd4 7. Nxd4 g6 8. Be2 Bg7 9. O-O O-O 10. Bf4 Qe7 11. Nb3 Ne5 12. Bg3 Be6 13. f4 Nc4 14. f5 Ne3 15. Qd3 Bxb3 16. cxb3 Nxf1 17. Bxd6 Qd7 18. Bxf8 Qxd3 19. Bxd3 Kxf8 20. Kxf1 Ng4 21. fxg6 hxg6 22. h3 Ne5 {[%emt 1:25:54]} 23. Ke2 {[%emt 1:25:51]} 1/2-1/2

[Event "Norway Eliteserien 2023-24"]
[Site "Oslo"]
[Date "2024.03.10"]
[Round "9.22"]
[White "Romanov, Evgeny"]
[Black "Delchev, Aleksander"]
[Result "1-0"]
[ECO "A48"]
[WhiteElo "2593"]
[BlackElo "2492"]
[Annotator "ChessBase"]
[PlyCount "79"]
[EventDate "2023.10.27"]
[EventType "team-tourn"]
[EventCountry "NOR"]
[SourceTitle "playchess.com"]
[Source "ChessBase"]
[SourceQuality "1"]
[TimeControl "40/5400+30:1800+30"]

1. d4 Nf6 2. Nf3 g6 3. Nbd2 c5 4. dxc5 Qa5 5. a3 Qxc5 6. b4 Qc7 7. c4 Bg7 8. Bb2 O-O 9. Rc1 d6 10. g3 a5 11. Bg2 axb4 12. axb4 Na6 13. Bc3 Ng4 14. Bxg7 Kxg7 15. Rb1 Bf5 16. e4 Bd7 17. Qe2 e5 18. O-O Nf6 19. Rfc1 Rac8 20. Ne1 Qb8 21. Nd3 Nc7 22. h3 Ne6 23. Qe3 Nd4 24. f4 Ba4 25. Rb2 Nd7 26. Nf3 Nxf3+ 27. Bxf3 b5 28. c5 Qa7 29. fxe5 Nxe5 30. Nxe5 dxe5 31. Rd2 Rcd8 32. Rd5 f6 33. Kg2 Rfe8 34. Rc3 Qe7 35. Rcd3 Rxd5 36. Rxd5 Qe6 37. Qd3 f5 38. h4 Re7 39. Qc3 fxe4 {[%emt 1:50:00]} 40. Bxe4 {[%emt 1:36:15]} 1-0

[Event "Norway Eliteserien 2023-24"]
[Site "Oslo"]
[Date "2024.03.10"]
[Round "9.23"]
[White "Elmi, Saad Abobaker"]
[Black "Kulaots, Kaido"]
[Result "0-1"]
[ECO "B35"]
[WhiteElo "2323"]
[BlackElo "2525"]
[Annotator "RC"]
[PlyCount "80"]
[EventDate "2023.10.27"]
[EventType "team-tourn"]
[EventCountry "NOR"]
[SourceTitle "playchess.com"]
[Source "ChessBase"]
[SourceQuality "1"]
[TimeControl "40/5400+30:1800+30"]

1. e4 c5 2. Nf3 Nc6 3. Nc3 g6 4. d4 cxd4 5. Nxd4 Bg7 6. Be3 Nf6 7. Bc4 O-O 8. Bb3 Re8 9. f3 e6 10. f4 d6 11. Ndb5 Bf8 12. Qf3 a6 13. Nd4 Na5 14. O-O-O b5 15. f5 exf5 16. exf5 Bb7 17. Qh3 b4 18. Na4 Nxb3+ 19. axb3 Ng4 20. Qxg4 Rxe3 21. Rhf1 Re4 22. Qg3 Bg7 23. Nf3 Re2 24. fxg6 hxg6 25. Rfe1 Rxe1 26. Qxe1 a5 27. Qd2 Rc8 28. Qd3 Qe8 29. Re1 Qc6 30. Kb1 Ba6 31. Qe4 d5 32. Qh4 Qxc2+ 33. Ka2 Bc4 34. Re3 Bd3 35. Re1 Bc4 36. Re3 Bxb3+ 37. Rxb3 Qc6 38. Nb6 Qxb6 39. Ng5 Qd4 40. Qh7+ {[%emt 1:33:30]} Kf8 {[%emt 1:50:30]} 0-1

[Event "Norway Eliteserien 2023-24"]
[Site "Oslo"]
[Date "2024.03.10"]
[Round "9.26"]
[White "Bryn, Askild"]
[Black "Olsen, Michael R. W."]
[Result "0-1"]
[ECO "B23"]
[WhiteElo "2034"]
[BlackElo "2041"]
[Annotator "NA RC"]
[PlyCount "78"]
[EventDate "2023.10.27"]
[EventType "team-tourn"]
[EventCountry "NOR"]
[SourceTitle "playchess.com"]
[Source "ChessBase"]
[SourceQuality "1"]
[TimeControl "40/5400+30:1800+30"]

1. e4 c5 2. Nc3 Nc6 3. f4 e6 4. Nf3 d5 5. d3 d4 6. Ne2 {B23: Sizilianisch (Geschlossenes System).} f5 7. g3 Nf6 8. e5 Nd5 9. Bg2 Be7 10. O-O O-O 11. a3 b6 12. c4 dxc3 13. bxc3 Qd7 14. Ra2 Ba6 15. c4 Nc7 16. Be3 Rad8 17. Rd2 b5 18. d4 bxc4 {[%emt 0:31:40]} 19. dxc5 {[%emt 0:31:50]} Nd5 {[%emt 0:43:16]} 20. Bf2 {[%emt 0:42:31]} Qc8 $11 {[%emt 0:48:50]} (20... Na5 $5) 21. Qc2 Na5 22. c6 Nxc6 23. Ra1 Nb6 24. Ned4 Bc5 25. Nxc6 Bxf2+ 26. Rxf2 Qxc6 27. Nd4 Qc8 28. Nc6 Rd7 29. a4 Bb7 30. Nxa7 Qc5 31. Bxb7 Rxb7 32. Nb5 Nd5 33. Qe2 Ra8 34. Nd6 Rb4 35. a5 Rxa5 36. Rxa5 Qxa5 37. Nxc4 Qa1+ 38. Kg2 Rxc4 39. Qh5 {[%emt 1:35:29]} Qa8 {[%emt 1:34:39]} 0-1

[Event "Norway Eliteserien 2023-24"]
[Site "Oslo"]
[Date "2024.03.10"]
[Round "9.31"]
[White "Houska, Jovanka"]
[Black "Kvaloy, Aksel Bu"]
[Result "1/2-1/2"]
[ECO "D38"]
[WhiteElo "2342"]
[BlackElo "2443"]
[Annotator "ChessBase"]
[PlyCount "84"]
[EventDate "2023.10.27"]
[EventType "team-tourn"]
[EventCountry "NOR"]
[SourceTitle "playchess.com"]
[Source "ChessBase"]
[SourceQuality "1"]
[TimeControl "40/5400+30:1800+30"]

1. d4 Nf6 2. Nf3 e6 3. c4 d5 4. cxd5 exd5 5. Nc3 Nbd7 6. Bg5 Bb4 7. Nd2 h6 8. Bh4 g5 9. Bg3 c5 10. e3 Qa5 11. dxc5 Bxc3 12. bxc3 Qxc3 13. Rc1 Qa5 14. Qb3 Ne4 15. Qxd5 Ndf6 16. Qd4 O-O 17. Bd6 Nxd2 18. Qxd2 Qxd2+ 19. Kxd2 Ne4+ 20. Ke1 Nxd6 21. cxd6 Be6 22. h4 Rac8 23. Rxc8 Rxc8 24. hxg5 hxg5 25. g3 Rd8 26. f4 Rxd6 27. Rh5 gxf4 28. gxf4 Rb6 29. a4 Rb2 30. Rb5 Ra2 31. Rxb7 Rxa4 32. Bd3 Kg7 33. e4 a5 34. Ke2 Bc4 35. Bxc4 Rxc4 36. Kd3 Ra4 37. Ra7 Kg6 38. Ra6+ Kh7 39. Ra7 Kg7 40. Ra6 Kh7 41. Ra7 Kg7 42. Ra6 {[%emt 1:56:04]} f5 {[%emt 1:41:40]} 1/2-1/2

[Event "Norway Eliteserien 2023-24"]
[Site "Oslo"]
[Date "2024.03.10"]
[Round "9.32"]
[White "Gjestemoen-VonHirsch, Andre"]
[Black "Bern, Ivar"]
[Result "1-0"]
[ECO "A80"]
[WhiteElo "2309"]
[BlackElo "2300"]
[Annotator "RC"]
[PlyCount "61"]
[EventDate "2023.10.27"]
[EventType "team-tourn"]
[EventCountry "NOR"]
[SourceTitle "playchess.com"]
[Source "ChessBase"]
[SourceQuality "1"]
[TimeControl "40/5400+30:1800+30"]

1. d4 f5 2. Nc3 Nf6 3. Bg5 d5 4. Bxf6 exf6 5. e3 Be6 6. Qf3 Qd7 7. Bd3 Nc6 8. a3 O-O-O 9. Nge2 g5 10. O-O-O Bd6 11. Nb5 Be7 12. g3 a6 13. Nbc3 b5 14. h4 h6 15. Rh2 Bf8 16. Qh1 Na5 17. Ng1 g4 18. Nge2 Kb8 19. Nf4 Bf7 20. b4 Nb7 21. Kd2 c6 22. Ra1 a5 23. Qb1 axb4 24. axb4 Bd6 25. Nce2 Kc7 26. c3 Be6 27. Nxe6+ Qxe6 28. Bxf5 Qg8 29. Rh1 h5 30. Nc1 Ra8 {[%emt 1:45:30]} 31. Nb3 {[%emt 1:31:38]} 1-0

[Event "Norway Eliteserien 2023-24"]
[Site "Oslo"]
[Date "2024.03.10"]
[Round "9.33"]
[White "Stokke, Kjetil"]
[Black "Shehzad, Shazil"]
[Result "0-1"]
[ECO "A13"]
[WhiteElo "2302"]
[BlackElo "2265"]
[Annotator "RC"]
[PlyCount "110"]
[EventDate "2023.10.27"]
[EventType "team-tourn"]
[EventCountry "NOR"]
[SourceTitle "playchess.com"]
[Source "ChessBase"]
[SourceQuality "1"]
[TimeControl "40/5400+30:1800+30"]

1. c4 Nf6 2. g3 e6 3. Bg2 d5 4. Nf3 d4 5. d3 c5 6. e4 Nc6 7. e5 Nd7 8. Bf4 Be7 9. h4 Qc7 10. Qe2 b6 11. Nbd2 Bb7 12. O-O-O a6 13. Kb1 b5 14. Ng5 h6 15. Qh5 g6 16. Nxe6 Qc8 17. Ng7+ Kf8 18. Ne6+ Kg8 19. Qg4 Ncxe5 20. Bxb7 Nxg4 21. Bxc8 Rxc8 22. Nc7 Nxf2 23. Nd5 Bd8 24. Ne4 Nxh1 25. Rxh1 bxc4 26. dxc4 Rc6 27. Rf1 Re6 28. Nf2 g5 29. Bd2 gxh4 30. gxh4 Bxh4 31. Nd3 Bg5 32. Be1 f6 33. a3 Kg7 34. Bg3 h5 35. b4 h4 36. Bc7 Rc8 37. bxc5 Rc6 38. Bd6 Nxc5 39. Bxc5 Rxc5 40. Nxc5 Rxc5 41. Kc2 Rxc4+ 42. Kd3 Rc1 43. Rf3 Rd1+ 44. Ke4 d3 45. Nc3 Ra1 46. Rxd3 Rxa3 47. Rd7+ Kh6 48. Nd5 h3 49. Rd8 Kh5 50. Rg8 Kh4 51. Kf5 Rf3+ 52. Ke4 Rf1 53. Nc3 Re1+ 54. Ne2 Rxe2+ 55. Kf3 {[%emt 1:46:42]} Re3+ {[%emt 1:53:26]} 0-1

[Event "Norway Eliteserien 2023-24"]
[Site "Oslo"]
[Date "2024.03.10"]
[Round "9.34"]
[White "Tallaksen, Levi Andre"]
[Black "Gabrielsen, Stig"]
[Result "1/2-1/2"]
[ECO "E20"]
[WhiteElo "2312"]
[BlackElo "2278"]
[Annotator "RC"]
[PlyCount "66"]
[EventDate "2023.10.27"]
[EventType "team-tourn"]
[EventCountry "NOR"]
[SourceTitle "playchess.com"]
[Source "ChessBase"]
[SourceQuality "1"]
[TimeControl "40/5400+30:1800+30"]

1. d4 Nf6 2. c4 e6 3. Nc3 Bb4 4. f3 Nh5 5. g3 f5 6. Nh3 O-O 7. Bg2 d6 8. f4 Nf6 9. O-O Nc6 10. d5 Ne7 11. Nf2 a5 12. Qd3 e5 13. fxe5 dxe5 14. e4 h6 15. Be3 fxe4 16. Ncxe4 Nf5 17. Nxf6+ Rxf6 18. Ne4 Rf8 19. c5 b6 20. Qb3 a4 21. Qxb4 Nxe3 22. Rxf8+ Qxf8 23. Qd2 Nxg2 24. Rf1 Qe8 25. Kxg2 Qh5 26. h4 Ba6 27. Rf2 Qg4 28. Qb4 h5 29. Qe1 Bc4 30. Nc3 Re8 31. cxb6 cxb6 32. Qe3 b5 33. a3 {[%emt 1:31:13]} e4 {[%emt 1:45:31]} 1/2-1/2

[Event "Norway Eliteserien 2023-24"]
[Site "Oslo"]
[Date "2024.03.10"]
[Round "9.35"]
[White "Demac, Elias"]
[Black "Fiskaaen, Martin Holten"]
[Result "1/2-1/2"]
[ECO "A03"]
[WhiteElo "2212"]
[BlackElo "2154"]
[Annotator "RC"]
[PlyCount "126"]
[EventDate "2023.10.27"]
[EventType "team-tourn"]
[EventCountry "NOR"]
[SourceTitle "playchess.com"]
[Source "ChessBase"]
[SourceQuality "1"]
[TimeControl "40/5400+30:1800+30"]

1. f4 d5 2. Nf3 g6 3. g3 Bg7 4. Bg2 Nf6 5. O-O b6 6. d3 Bb7 7. Qe1 O-O 8. Na3 c5 9. c4 Nc6 10. b3 e6 11. Bb2 d4 12. Nc2 a5 13. a3 Qc7 14. b4 Nd7 15. b5 Ne7 16. e3 dxe3 17. Bxg7 Kxg7 18. Qc3+ Kg8 19. Nxe3 Nf5 20. Rae1 Rad8 21. Nxf5 exf5 22. Re3 Rfe8 23. Rfe1 Rxe3 24. Rxe3 h6 25. a4 Qd6 26. Ne5 Qd4 27. Qxd4 cxd4 28. Re1 Nc5 29. Bxb7 Nxb7 30. Nc6 Rd6 31. Ne7+ Kf8 32. Nc8 Re6 33. Rxe6 fxe6 34. Nxb6 Nc5 35. Kf1 Ke8 36. Nc8 Nxa4 37. Na7 Nc5 38. Nc6 a4 39. Nxd4 a3 40. Nc2 a2 41. Na1 Nxd3 42. Ke2 Nb2 43. c5 Kd7 44. Ke3 Nd1+ 45. Kd4 Nf2 46. Nb3 Ne4 47. Na1 Nd2 48. Kc3 Ne4+ 49. Kd4 h5 50. Nc2 Kc7 51. b6+ Kb7 52. Kc4 Nd2+ 53. Kb5 Nb3 54. c6+ Kb8 55. Kc4 Nd2+ 56. Kc5 Ne4+ 57. Kb5 Nd6+ 58. Ka6 h4 59. gxh4 Kc8 60. Ka7 Nb5+ 61. Ka8 Nc7+ 62. Ka7 Nb5+ 63. Ka8 {[%emt 2:32:00]} Nc7+ {[%emt 2:28:38]} 1/2-1/2

[Event "Norway Eliteserien 2023-24"]
[Site "Oslo"]
[Date "2024.03.10"]
[Round "9.36"]
[White "Hestholm, Gustav"]
[Black "Abdullah, Mansoor"]
[Result "1-0"]
[ECO "C84"]
[WhiteElo "1942"]
[BlackElo "2270"]
[Annotator "ChessBase"]
[PlyCount "81"]
[EventDate "2023.10.27"]
[EventType "team-tourn"]
[EventCountry "NOR"]
[SourceTitle "playchess.com"]
[Source "ChessBase"]
[SourceQuality "1"]
[TimeControl "40/5400+30:1800+30"]

1. e4 e5 2. Nf3 Nc6 3. Bb5 a6 4. Ba4 Nf6 5. O-O Be7 6. d3 b5 7. Bb3 O-O 8. Nc3 d6 9. a3 Bg4 10. Be3 Na5 11. Ba2 c5 12. Nd5 Nc6 13. c3 a5 14. h3 Be6 15. Qd2 a4 16. Ng5 Bxd5 17. exd5 Na5 18. c4 Nd7 19. Nf3 f5 20. Qc2 g5 21. Bd2 h5 22. Bc3 g4 23. hxg4 hxg4 24. Ne1 Bg5 25. Qe2 Rf7 26. g3 Rg7 27. Kg2 Qf6 28. Rh1 Rf8 29. Bxa5 b4 30. axb4 Bh6 31. Nc2 Qg6 32. bxc5 Nxc5 33. Bd2 f4 34. gxf4 exf4 35. Kg1 Re8 36. Qf1 g3 37. Rh3 g2 38. Qd1 Nxd3 39. Qh5 Ne5 40. Qxg6 Rxg6 {[%emt 1:16:43]} 41. Nd4 {[%emt 1:56:40]} 1-0

[Event "Norway Eliteserien 2023-24"]
[Site "Oslo"]
[Date "2024.03.10"]
[Round "9.41"]
[White "Notkevich, Benjamin Arvola"]
[Black "Brkic, Ante"]
[Result "1/2-1/2"]
[ECO "B97"]
[WhiteElo "2462"]
[BlackElo "2633"]
[Annotator "TA"]
[PlyCount "100"]
[EventDate "2023.10.27"]
[EventType "team-tourn"]
[EventCountry "NOR"]
[SourceTitle "playchess.com"]
[Source "ChessBase"]
[SourceQuality "1"]
[TimeControl "40/5400+30:1800+30"]

{[%evp 20,100,-48,-40,-25,-30,-12,-18,-15,-18,-13,-6,0,-20,-19,-30,-20,-16,0,0,0,0,-7,-28,0,0,0,0,0,0,0,0,0,0,0,0,68,0,0,0,0,0,0,0,0,0,0,0,0,0,0,0,0,0,0,-11,0,-15,0,0,0,0,0,0,0,0,0,0,0,0,0,-1,-1,-3,0,0,0,0,0,0,0,-7,0]} 1. e4 c5 2. Nf3 d6 3. d4 cxd4 4. Nxd4 Nf6 5. Nc3 a6 6. Bg5 e6 7. f4 Qb6 8. Qd2 Qxb2 9. Rb1 Qa3 10. e5 h6 11. Bh4 dxe5 12. fxe5 Nfd7 13. Ne4 $1 {[#] Strongly threatening Be2.} Qxa2 14. Rd1 {Be2 is the strong threat.} Qd5 (14... Nxe5 15. Nxe6 (15. Nb5 f6 $18) 15... f5 (15... fxe6 $2 16. Be2 $18) 16. Nxf8 $18 (16. Nc7+ Kf7 $16)) 15. Qe3 Qxe5 {Threatens to win with ...Bb4+.} 16. Be2 Bc5 $1 {And now ...Bb6 would win.} 17. Bg3 Qd5 {...0-0 would now be deadly.} 18. c4 Bxd4 $1 19. Rxd4 Qa5+ 20. Rd2 O-O {White should prevent ...f5.} 21. Bd6 $1 f5 22. Bxf8 Nxf8 23. Nd6 Nbd7 24. O-O {[#] Hoping for Nxc8.} Qc5 25. Qxc5 Nxc5 26. Bf3 a5 27. Rb1 {[%cal Ob1b5]} Nfd7 ({Black should play} 27... a4 $11) 28. Bxb7 {White is much more active.} (28. Nxb7 $14 Bxb7 29. Rxb7 (29. Bxb7 Ra7 $11) 29... Nxb7 30. Bxb7) 28... Bxb7 $11 {The position is equal.} 29. Nxb7 a4 30. Rb5 Rc8 31. Nxc5 Nxc5 {[%mdl 4096] Endgame. KRR-KRN} 32. Rdb2 Kf7 33. Ra5 Ke7 34. Rb6 g5 35. Kf1 h5 36. Ke2 Kf6 37. g3 h4 38. Ke3 hxg3 39. hxg3 g4 40. Ra7 Ke5 41. Ra5 Kf6 42. Ra7 Ne4 43. Raa6 Re8 44. Kf4 {[%cal Oa6a5]} Nc5 45. Ra5 Rc8 46. Ke3 {Against Nd3} Rc7 47. Ra8 Nd7 {[%csl LRb6,LRc4]} 48. Rb4 Nc5 49. Rb6 Nd7 {[%csl LRb6,LRc4]} 50. Rb4 {[%emt 2:16:00]} Nc5 {[%emt 2:13:46] Weighted Error Value: White=0.02 (flawless) /Black=0.05 (flawless) .  Mistake:       	White=1     	Black=1      Inaccurate:     	---       	Black=1      OK:         	White=22    	Black=13     Best:        	White=4     	Black=2      Strong:       	White=2     	Black=2} 1/2-1/2